bitfinex-derivatives/quotes_BTCF0:USTF0_20241223
["timestamp","ask_amount","ask_price","bid_price","bid_amount"]
[1734920713561,0.053307,93875.0,93874.0,0.3608]
[1734920715459,0.054307,93875.0,93874.0,1.4378]
[1734920715857,0.054307,93875.0,93874.0,1.077]
[1734920717260,0.054307,93875.0,93874.0,1.4378]
[1734920717261,0.001,93875.0,93874.0,1.4378]
[1734920717566,0.00159798,93905.0,93874.0,1.85081633]
[1734920717751,0.053292,93902.0,93899.0,0.3608]
[1734920717948,0.00159798,93905.0,93899.0,0.3608]
[1734920718159,0.053284,93916.0,93900.0,0.11301633]
[1734920718457,0.15480274,93925.0,93914.0,0.3608]
[1734920718653,0.05328,93923.0,93914.0,0.3608]
[1734920718855,0.05328,93923.0,93914.0,0.47858272]
[1734920719164,0.3608,93940.0,93914.0,0.47858272]
[1734920719459,0.053281,93921.0,93914.0,0.47858272]
[1734920720461,0.053284,93916.0,93914.0,0.3608]
[1734920721060,0.05329,93906.0,93901.0,0.016]
[1734920721753,0.053291,93903.0,93901.0,0.016]
[1734920721954,0.00605773,93915.0,93894.0,0.3608]
[1734920722355,0.053298,93891.0,93890.0,0.35796]
[1734920723460,0.053298,93891.0,93890.0,1.42796]
[1734920723859,0.053298,93891.0,93890.0,1.44396]
[1734920724254,0.055298,93891.0,93890.0,1.42796]
[1734920724457,0.055298,93891.0,93890.0,0.35796]
[1734920725369,0.057298,93891.0,93890.0,0.35796]
[1734920725767,0.004,93891.0,93890.0,0.35796]
[1734920725963,0.053289,93908.0,93890.0,0.77542041]
[1734920726158,0.053289,93908.0,93901.0,0.3608]
[1734920726663,0.05329,93906.0,93901.0,0.3608]
[1734920727463,5.773e-05,93915.0,93901.0,0.3608]
[1734920727766,5.773e-05,93915.0,93910.0,0.3608]
[1734920728757,5.773e-05,93915.0,93911.0,0.11765289]
[1734920728964,5.773e-05,93915.0,93913.0,0.3608]
[1734920729865,0.01069989,93942.0,93913.0,0.3608]
[1734920730060,0.09248502,93956.0,93941.0,0.3608]
[1734920730262,0.053263,93953.0,93941.0,0.3608]
[1734920730471,0.053263,93953.0,93942.0,0.11547803]
[1734920730967,0.05337153,93943.0,93941.0,0.3608]
[1734920731466,0.05337153,93943.0,93941.0,0.3618]
[1734920731861,0.05337153,93943.0,93941.0,0.3608]
[1734920734272,0.05437153,93943.0,93941.0,0.3668]
[1734920734773,0.06237153,93943.0,93941.0,0.3618]
[1734920735273,0.06237153,93943.0,93941.0,0.001]
[1734920739360,0.053272,93936.0,93935.0,0.00011529]
[1734920739560,0.053272,93936.0,93922.0,0.36239683]
[1734920739760,0.3608,93926.0,93904.0,0.00056]
[1734920739963,0.053292,93902.0,93901.0,0.3608]
[1734920740359,0.053292,93902.0,93898.0,0.00159754]
[1734920740570,0.053293,93900.0,93898.0,0.00159754]
[1734920741566,0.053293,93900.0,93899.0,0.006]
[1734920744281,8.297e-05,93901.0,93884.0,0.3608]
[1734920744576,0.006,93900.0,93893.0,0.3608]
[1734920744977,8.297e-05,93901.0,93894.0,0.053296]
[1734920745170,8.297e-05,93901.0,93893.0,0.3608]
[1734920745171,0.007,93900.0,93898.0,0.053294]
[1734920745679,0.004,93900.0,93898.0,0.053294]
[1734920745877,0.004,93900.0,93899.0,1.07]
[1734920746581,0.005,93900.0,93899.0,1.07]
[1734920747869,0.053296,93894.0,93893.0,0.36136]
[1734920748067,0.053296,93894.0,93879.0,0.3608]
[1734920748068,0.001,93900.0,93879.0,0.61457285]
[1734920748371,0.16410717,93900.0,93889.0,0.3608]
[1734920748573,0.053299,93890.0,93889.0,0.3608]
[1734920749877,0.053295,93897.0,93889.0,0.3608]
[1734920750483,0.053295,93897.0,93890.0,1.07]
[1734920750887,0.053295,93897.0,93889.0,0.3608]
[1734920751086,0.053298,93892.0,93889.0,0.3608]
[1734920751380,0.002,93890.0,93889.0,0.3608]
[1734920751777,0.053298,93892.0,93889.0,0.3608]
[1734920752282,0.053299,93890.0,93889.0,0.3608]
[1734920752473,0.053299,93890.0,93877.0,1.07]
[1734920752474,0.053299,93890.0,93877.0,0.00056]
[1734920752673,0.16310717,93887.0,93874.0,0.00013375]
[1734920752983,0.053307,93875.0,93874.0,0.00013375]
[1734920755279,0.053307,93875.0,93874.0,0.00113375]
[1734920758099,0.414107,93875.0,93874.0,0.00113375]
[1734920758995,0.053307,93875.0,93874.0,0.00113375]
[1734920759197,0.414107,93875.0,93874.0,0.00113375]
[1734920759693,0.72462881,93875.0,93845.0,0.3608]
[1734920759894,0.053324,93846.0,93845.0,0.3608]
[1734920760698,0.05341423,93846.0,93845.0,0.3608]
[1734920761101,0.05341423,93846.0,93845.0,0.3658]
[1734920761702,0.05441423,93846.0,93845.0,0.3658]
[1734920762701,0.00109023,93846.0,93845.0,0.3658]
[1734920763304,0.00109023,93846.0,93845.0,1.4358]
[1734920764107,9.023e-05,93846.0,93845.0,1.44144589]
[1734920764303,0.05441423,93846.0,93845.0,1.44444589]
[1734920764497,0.05441423,93846.0,93845.0,1.4338]
[1734920764704,0.05341423,93846.0,93845.0,1.07]
[1734920764911,0.05441423,93846.0,93845.0,0.3638]
[1734920765301,0.00109023,93846.0,93845.0,0.3638]
[1734920765503,0.053314,93863.0,93846.0,0.053323]
[1734920765702,0.053314,93863.0,93854.0,0.3608]
[1734920765910,0.053314,93863.0,93862.0,0.3608]
[1734920766305,0.09248502,93872.0,93862.0,0.3608]
[1734920766512,0.05331,93870.0,93862.0,0.3608]
[1734920766698,0.053313,93864.0,93862.0,0.3608]
[1734920766907,0.053318,93855.0,93854.0,0.3608]
[1734920767100,0.053324,93846.0,93841.0,0.3608]
[1734920767708,0.053328,93838.0,93837.0,0.19045352]
[1734920767903,0.414128,93838.0,93837.0,0.19045352]
[1734920768499,0.053336,93825.0,93824.0,0.3608]
[1734920768702,0.0534638,93825.0,93824.0,0.3608]
[1734920770804,0.0544638,93825.0,93824.0,0.3658]
[1734920771299,0.0011278,93825.0,93824.0,0.3658]
[1734920771513,0.0011278,93825.0,93824.0,0.53474398]
[1734920771814,0.053323,93847.0,93832.0,0.053331]
[1734920772014,0.053323,93847.0,93846.0,0.3608]
[1734920772705,8.078e-05,93847.0,93837.0,0.3608]
[1734920773017,0.16318795,93847.0,93837.0,0.3608]
[1734920773416,0.053328,93838.0,93837.0,0.3608]
[1734920773619,8.078e-05,93847.0,93837.0,0.3608]
[1734920773803,0.053324,93845.0,93837.0,0.3608]
[1734920774111,0.053324,93845.0,93842.0,0.3608]
[1734920774312,0.00108078,93847.0,93833.0,0.3608]
[1734920774518,0.05333,93834.0,93833.0,0.3608]
[1734920775611,0.001,93845.0,93823.0,1.08358978]
[1734920775912,0.053336,93824.0,93823.0,0.01302978]
[1734920777518,0.053336,93824.0,93823.0,0.37382978]
[1734920777818,0.054336,93824.0,93823.0,0.01902978]
[1734920781415,0.053349,93802.0,93792.0,0.3608]
[1734920781818,0.5096,93801.0,93792.0,0.3608]
[1734920782016,0.5096,93801.0,93782.0,0.3608]
[1734920782621,0.50969716,93801.0,93790.0,0.01041964]
[1734920783020,0.80009716,93801.0,93790.0,0.01041964]
[1734920783315,1.10009716,93801.0,93782.0,0.3608]
[1734920783519,0.053359,93783.0,93782.0,0.3608]
[1734920783721,0.053359,93783.0,93752.0,0.016]
[1734920783722,0.7216,93789.0,93733.0,0.36368332]
[1734920784026,0.7216,93789.0,93708.0,0.27026557]
[1734920784027,0.414186,93736.0,93721.0,0.36368332]
[1734920784315,0.414194,93722.0,93721.0,0.36368332]
[1734920784619,0.414194,93722.0,93721.0,0.25231032]
[1734920784620,0.41430864,93722.0,93721.0,0.25231032]
[1734920784818,0.053398,93715.0,93714.0,1.14242306]
[1734920785013,0.3608,93715.0,93714.0,1.1532963]
[1734920785328,0.3608,93715.0,93714.0,0.31988]
[1734920785817,0.3608,93715.0,93711.0,0.23814]
[1734920786012,0.3608,93715.0,93711.0,0.31988]
[1734920786214,0.414198,93715.0,93700.0,0.1]
[1734920786416,0.3608,93701.0,93700.0,0.1]
[1734920786924,0.09248502,93714.0,93706.0,0.053403]
[1734920787218,0.45328502,93714.0,93712.0,0.31988]
[1734920787521,0.45328502,93714.0,93706.0,0.053403]
[1734920787923,0.45328502,93714.0,93713.0,0.31988]
[1734920788227,0.3608,93714.0,93713.0,0.31988]
[1734920788621,0.3608,93714.0,93713.0,1.22968134]
[1734920788832,0.00160147,93721.0,93720.0,0.053395]
[1734920789027,0.00160147,93721.0,93720.0,0.21307634]
[1734920789916,0.00011464,93722.0,93720.0,0.21307634]
[1734920790125,0.3608,93754.0,93742.0,0.053383]
[1734920790323,0.3608,93754.0,93744.0,0.06719568]
[1734920790324,0.01048106,93753.0,93744.0,0.06719568]
[1734920790527,0.01048106,93753.0,93742.0,0.053383]
[1734920790718,0.01048106,93753.0,93744.0,0.06719568]
[1734920791029,8.649e-05,93752.0,93750.0,0.06719568]
[1734920791216,8.649e-05,93752.0,93742.0,0.053383]
[1734920791417,8.649e-05,93752.0,93720.0,0.16310717]
[1734920791418,0.3608,93744.0,93716.0,0.3608]
[1734920791715,0.3608,93734.0,93722.0,0.06719568]
[1734920791917,0.3608,93734.0,93722.0,0.3608]
[1734920792128,0.001,93745.0,93742.0,0.053382]
[1734920792318,0.001,93745.0,93744.0,0.06719568]
[1734920792624,0.001,93745.0,93742.0,0.053382]
[1734920792826,0.001,93745.0,93733.0,0.414188]
[1734920793221,0.3608,93738.0,93723.0,0.15]
[1734920793428,0.053387,93736.0,93723.0,0.06719568]
[1734920793619,0.3608,93738.0,93724.0,0.053393]
[1734920794126,0.3608,93738.0,93722.0,0.3608]
[1734920794127,0.3608,93738.0,93732.0,0.053388]
[1734920794332,0.3608,93738.0,93735.0,0.12058268]
[1734920794543,0.3608,93738.0,93737.0,0.053386]
[1734920794729,0.3608,93738.0,93731.0,0.06719568]
[1734920794932,0.01080805,93742.0,93735.0,0.06719568]
[1734920795127,0.053378,93750.0,93740.0,0.06719568]
[1734920795726,0.06423496,93750.0,93740.0,0.06719568]
[1734920795924,0.06423496,93750.0,93734.0,0.053387]
[1734920796129,0.3608,93740.0,93734.0,0.053387]
[1734920796332,0.3608,93740.0,93736.0,0.06719568]
[1734920796529,0.001,93738.0,93725.0,0.414192]
[1734920796733,0.001,93738.0,93735.0,0.06719568]
[1734920797125,0.3608,93740.0,93736.0,0.06719568]
[1734920797836,0.001,93738.0,93736.0,0.06719568]
[1734920798431,0.001,93738.0,93727.0,0.053391]
[1734920798632,0.001,93738.0,93737.0,0.06719568]
[1734920798941,0.0118815,93738.0,93737.0,0.06719568]
[1734920799139,0.001,93738.0,93737.0,0.06719568]
[1734920799644,0.00152649,93752.0,93751.0,0.053378]
[1734920799840,8.649e-05,93752.0,93751.0,0.48137368]
[1734920800236,8.649e-05,93752.0,93751.0,0.12057368]
[1734920800929,0.00108649,93752.0,93751.0,0.12057368]
[1734920801133,0.3608,93762.0,93751.0,0.06719568]
[1734920801330,0.3608,93762.0,93761.0,0.12056768]
[1734920802238,0.36092656,93762.0,93761.0,0.12056768]
[1734920802643,0.00012656,93762.0,93761.0,0.12056768]
[1734920802942,0.3608,93780.0,93776.0,0.053363]
[1734920803144,0.053358,93786.0,93779.0,0.06719568]
[1734920803343,0.053358,93786.0,93780.0,0.06719568]
[1734920804035,0.01224686,93781.0,93780.0,0.06719568]
[1734920805441,0.00160039,93781.0,93780.0,0.12055668]
[1734920805946,0.00260039,93781.0,93780.0,0.12255668]
[1734920806135,0.00260039,93781.0,93780.0,0.06919568]
[1734920806335,0.05596139,93781.0,93780.0,0.002]
[1734920814253,0.05596139,93781.0,93780.0,0.06919568]
[1734920814653,0.00260039,93781.0,93780.0,0.06919568]
[1734920817259,0.3608,93801.0,93799.0,0.05335]
[1734920817750,0.36383946,93820.0,93800.0,0.19778291]
[1734920817956,0.15480274,93819.0,93818.0,0.053339]
[1734920818346,0.3608,93837.0,93836.0,0.053329]
[1734920818543,0.3608,93847.0,93846.0,0.053324]
[1734920818744,0.3608,93847.0,93846.0,0.12051968]
[1734920819358,0.3608,93856.0,93854.0,0.053319]
[1734920819543,0.00159859,93867.0,93855.0,0.42799568]
[1734920819745,0.00159859,93867.0,93866.0,0.06719568]
[1734920820557,0.00159859,93867.0,93844.0,0.3608]
[1734920820753,0.053322,93850.0,93847.0,0.06719568]
[1734920821551,0.3608,93860.0,93849.0,0.06719568]
[1734920821753,0.3608,93860.0,93844.0,0.3608]
[1734920821754,0.3608,93860.0,93859.0,0.06719568]
[1734920821954,0.053315,93861.0,93859.0,0.06719568]
[1734920822262,0.053315,93861.0,93860.0,0.06719568]
[1734920822651,0.053315,93861.0,93846.0,0.053324]
[1734920822961,0.001,93860.0,93859.0,0.009]
[1734920823458,0.054315,93861.0,93860.0,0.009]
[1734920824158,0.001,93860.0,93859.0,0.009]
[1734920824355,0.001,93860.0,93859.0,0.062316]
[1734920824563,0.001,93860.0,93859.0,0.12951168]
[1734920824751,0.3608,93895.0,93859.0,0.57869568]
[1734920824955,0.3608,93895.0,93886.0,0.06719568]
[1734920825257,0.3608,93895.0,93887.0,0.06719568]
[1734920825664,0.3608,93895.0,93892.0,0.053297]
[1734920825860,0.053287,93910.0,93892.0,0.053297]
[1734920826052,0.053287,93910.0,93897.0,0.06719568]
[1734920826359,0.053287,93910.0,93899.0,0.06719568]
[1734920827247,0.00159809,93918.0,93899.0,0.06719568]
[1734920827447,0.00159809,93918.0,93899.0,0.54618495]
[1734920827659,0.3608,93933.0,93917.0,0.42799568]
[1734920827963,0.36945578,93933.0,93932.0,0.06719568]
[1734920828147,0.053266,93948.0,93932.0,0.06719568]
[1734920828649,0.01004925,93952.0,93943.0,0.06719568]
[1734920828850,0.00159745,93952.0,93951.0,0.06719568]
[1734920829957,0.00159745,93952.0,93951.0,0.07019568]
[1734920830159,0.00159745,93952.0,93951.0,0.003]
[1734920831063,0.00159745,93952.0,93924.0,0.3608]
[1734920831362,0.053274,93933.0,93931.0,0.06879267]
[1734920831564,0.053274,93933.0,93931.0,0.00159699]
[1734920831754,0.053281,93921.0,93917.0,0.3608]
[1734920831955,0.053281,93921.0,93920.0,0.06719568]
[1734920832154,0.053282,93920.0,93919.0,0.06719568]
[1734920833762,0.06193532,93931.0,93919.0,0.07519568]
[1734920834264,0.3608,93920.0,93919.0,0.07519568]
[1734920835969,0.414082,93920.0,93919.0,0.07519568]
[1734920837259,0.414082,93920.0,93919.0,0.008]
[1734920837460,0.053293,93899.0,93886.0,0.3608]
[1734920837666,0.053299,93889.0,93886.0,0.3608]
[1734920837965,0.053299,93889.0,93888.0,0.0230757]
[1734920839364,0.053299,93889.0,93888.0,0.0310757]
[1734920839365,0.054299,93889.0,93888.0,0.0310757]
[1734920840364,0.00841481,93897.0,93888.0,0.0230757]
[1734920840565,0.001,93889.0,93888.0,0.007]
[1734920840769,0.3608,93900.0,93888.0,0.0300757]
[1734920840966,0.52390717,93900.0,93899.0,0.0230757]
[1734920841268,0.414093,93900.0,93899.0,0.0230757]
[1734920841455,0.053299,93889.0,93888.0,0.007]
[1734920841660,0.053306,93877.0,93876.0,0.3608]
[1734920842569,0.053308,93873.0,93853.0,0.3608]
[1734920842867,0.053319,93854.0,93853.0,0.3608]
[1734920843165,0.3608,93861.0,93853.0,0.3608]
[1734920843558,0.21642117,93863.0,93853.0,0.3608]
[1734920843761,0.00010746,93862.0,93861.0,0.3608]
[1734920844070,0.00010746,93862.0,93857.0,0.053317]
[1734920844266,0.00010746,93862.0,93859.0,0.053316]
[1734920844657,0.00010746,93862.0,93853.0,0.3608]
[1734920845372,0.001,93854.0,93853.0,0.3628]
[1734920845970,0.00010746,93862.0,93853.0,0.3608]
[1734920846166,0.00110746,93862.0,93853.0,0.3628]
[1734920846875,0.053327,93840.0,93838.0,0.0006]
[1734920847167,0.05333,93835.0,93826.0,7.765e-05]
[1734920847473,0.05333,93835.0,93829.0,0.25200194]
[1734920847474,0.053332,93831.0,93829.0,0.25200194]
[1734920848771,0.053333,93829.0,93826.0,7.765e-05]
[1734920848961,0.00068,93835.0,93826.0,7.765e-05]
[1734920849166,0.053328,93839.0,93826.0,7.765e-05]
[1734920849368,0.001,93831.0,93829.0,0.009]
[1734920849966,0.053328,93839.0,93826.0,7.765e-05]
[1734920850171,0.001,93829.0,93826.0,0.00907765]
[1734920850567,0.001,93829.0,93828.0,0.053334]
[1734920850762,0.053328,93839.0,93828.0,0.0453302]
[1734920850968,0.3608,93845.0,93836.0,0.053329]
[1734920851869,0.053322,93849.0,93836.0,0.053329]
[1734920852263,0.053315,93861.0,93846.0,0.3608]
[1734920852468,0.053315,93861.0,93847.0,1.07]
[1734920852863,0.00010746,93862.0,93860.0,0.053315]
[1734920853071,0.053304,93881.0,93865.0,0.053313]
[1734920853268,0.053304,93881.0,93872.0,0.3608]
[1734920853774,0.3608,93908.0,93872.0,0.3608]
[1734920853775,0.00874498,93894.0,93872.0,0.3768]
[1734920854069,0.37251544,93908.0,93872.0,0.3768]
[1734920854070,0.3608,93908.0,93894.0,0.053296]
[1734920854567,0.053292,93902.0,93892.0,0.3608]
[1734920855078,0.053297,93894.0,93882.0,0.3608]
[1734920855572,0.053297,93894.0,93883.0,0.053303]
[1734920855769,0.001,93902.0,93892.0,0.006]
[1734920855969,0.001,93902.0,93898.0,0.053294]
[1734920856372,0.001,93894.0,93892.0,0.3608]
[1734920856875,0.001,93894.0,93888.0,0.0533]
[1734920857675,0.001,93894.0,93887.0,0.016]
[1734920857869,0.001,93894.0,93893.0,0.3608]
[1734920858172,0.3608,93908.0,93898.0,0.005]
[1734920858376,0.001,93902.0,93898.0,0.005]
[1734920858673,0.053293,93900.0,93898.0,0.005]
[1734920858872,0.001,93894.0,93887.0,0.005]
[1734920859580,0.053294,93898.0,93886.0,0.053301]
[1734920860277,0.001,93902.0,93882.0,0.3608]
[1734920860678,0.053293,93900.0,93887.0,0.0533]
[1734920860974,0.053293,93900.0,93882.0,0.3608]
[1734920860975,0.053295,93896.0,93882.0,0.3608]
[1734920861478,0.053295,93896.0,93884.0,0.053302]
[1734920861678,0.001,93902.0,93882.0,0.3608]
[1734920861878,0.3608,93908.0,93891.0,0.3608]
[1734920862267,0.00159805,93913.0,93891.0,0.3608]
[1734920862582,0.053287,93911.0,93898.0,0.053294]
[1734920863087,0.053291,93903.0,93891.0,0.3608]
[1734920863384,0.001,93908.0,93891.0,0.3688]
[1734920863765,0.053292,93903.0,93891.0,0.3688]
[1734920864971,0.053292,93903.0,93891.0,0.3608]
[1734920865280,0.053293,93899.0,93898.0,0.008]
[1734920865670,0.053289,93908.0,93898.0,0.008]
[1734920865970,0.01059783,93913.0,93912.0,0.053286]
[1734920865971,0.00159805,93913.0,93912.0,0.053286]
[1734920866276,0.053273,93935.0,93925.0,0.053278]
[1734920866667,0.3608,93943.0,93924.0,0.3608]
[1734920867080,0.053267,93946.0,93937.0,0.053272]
[1734920868380,0.053267,93946.0,93942.0,0.3608]
[1734920869179,0.00914717,93952.0,93942.0,0.3608]
[1734920869381,0.001,93946.0,93942.0,0.3608]
[1734920869780,0.001,93946.0,93937.0,0.009]
[1734920869987,0.3608,93940.0,93925.0,0.00064]
[1734920870179,0.053278,93927.0,93915.0,0.414084]
[1734920871070,0.3608,93940.0,93915.0,0.3608]
[1734920871380,0.053279,93925.0,93915.0,0.3608]
[1734920871880,0.3608,93929.0,93915.0,0.3608]
[1734920872188,0.053282,93920.0,93915.0,0.3608]
[1734920872376,0.3608,93929.0,93915.0,0.3608]
[1734920872576,0.414077,93929.0,93915.0,0.3608]
[1734920872884,0.414077,93929.0,93924.0,0.007]
[1734920873077,0.053279,93925.0,93924.0,0.007]
[1734920873389,0.053279,93925.0,93915.0,0.414084]
[1734920873588,0.053279,93925.0,93915.0,0.421084]
[1734920874084,0.053279,93925.0,93924.0,0.007]
[1734920875784,0.054279,93925.0,93915.0,0.008]
[1734920876287,0.3608,93931.0,93915.0,0.3608]
[1734920876477,0.36239745,93939.0,93924.0,0.3668]
[1734920876686,0.36239745,93939.0,93938.0,0.053277]
[1734920876887,0.00159745,93939.0,93938.0,0.053277]
[1734920877580,0.06218077,93958.0,93943.0,0.053273]
[1734920877788,0.00891477,93958.0,93943.0,0.053273]
[1734920878088,0.3608,93950.0,93924.0,0.053284]
[1734920878386,0.053275,93942.0,93924.0,0.053284]
[1734920878691,0.3608,93950.0,93924.0,0.053284]
[1734920878692,0.053276,93940.0,93924.0,0.053284]
[1734920878887,0.053276,93940.0,93923.0,0.3608]
[1734920879084,0.053276,93940.0,93930.0,0.053281]
[1734920880592,0.00896925,93959.0,93935.0,0.7216]
[1734920880793,0.053263,93962.0,93946.0,0.3608]
[1734920881086,0.3608,93970.0,93946.0,0.3608]
[1734920881394,0.3608,93970.0,93968.0,0.053259]
[1734920881982,0.053249,93987.0,93969.0,0.053258]
[1734920882390,0.0088603,93983.0,93969.0,0.053258]
[1734920882690,0.053251,93984.0,93969.0,0.053258]
[1734920883493,0.053252,93981.0,93969.0,0.053258]
[1734920884488,0.053247,93991.0,93969.0,0.053258]
[1734920884789,0.00894118,93989.0,93969.0,0.053258]
[1734920884984,0.053247,93991.0,93969.0,0.053258]
[1734920885297,0.3608,93994.0,93969.0,0.053258]
[1734920885489,0.16333348,93990.0,93969.0,0.053258]
[1734920885691,0.16333348,93980.0,93969.0,0.053258]
[1734920885991,0.053246,93992.0,93983.0,0.053251]
[1734920886190,0.053246,93992.0,93970.0,0.1228781]
[1734920886191,0.3608,93994.0,93970.0,0.1228781]
[1734920886388,0.3608,93994.0,93969.0,0.007]
[1734920886589,0.3608,93994.0,93979.0,0.053253]
[1734920886788,0.16333348,93990.0,93979.0,0.053253]
[1734920887094,0.16333348,93990.0,93975.0,0.3608]
[1734920887295,0.053248,93988.0,93975.0,0.3608]
[1734920888297,0.053248,93988.0,93976.0,0.053255]
[1734920889184,0.3608,93978.0,93969.0,0.007]
[1734920889394,0.3608,93978.0,93975.0,0.009]
[1734920889395,0.053254,93977.0,93975.0,0.009]
[1734920889993,0.053257,93973.0,93956.0,0.053266]
[1734920890194,0.053258,93972.0,93956.0,0.053266]
[1734920890491,0.3608,93970.0,93954.0,0.3608]
[1734920890795,0.053262,93964.0,93954.0,0.3608]
[1734920890998,0.053262,93964.0,93947.0,0.3608]
[1734920891295,0.053272,93946.0,93935.0,0.25200194]
[1734920892102,7.948e-05,93945.0,93933.0,0.3608]
[1734920892889,7.948e-05,93945.0,93935.0,0.053278]
[1734920893197,7.948e-05,93945.0,93944.0,0.0075968]
[1734920893588,7.948e-05,93945.0,93944.0,0.0025968]
[1734920895192,7.948e-05,93945.0,93944.0,0.001]
[1734920895385,7.948e-05,93945.0,93923.0,0.3608]
[1734920895590,0.3608,93930.0,93923.0,0.3608]
[1734920895892,0.3608,93930.0,93918.0,0.053287]
[1734920896394,0.3608,93930.0,93922.0,0.053286]
[1734920896596,0.16333348,93933.0,93929.0,0.053282]
[1734920896791,0.00076,93940.0,93926.0,0.3608]
[1734920896992,7.948e-05,93945.0,93937.0,0.053277]
[1734920897187,7.948e-05,93945.0,93927.0,0.1415]
[1734920897488,0.52413348,93940.0,93927.0,0.1415]
[1734920897796,0.52413348,93940.0,93928.0,0.016]
[1734920898393,0.52413348,93940.0,93929.0,0.016]
[1734920898592,0.3608,93940.0,93929.0,0.016]
[1734920898996,0.3608,93940.0,93930.0,0.053281]
[1734920899197,0.3608,93940.0,93937.0,0.006]
[1734920899492,0.053277,93938.0,93937.0,0.006]
[1734920899696,0.3608,93940.0,93896.0,0.30322592]
[1734920899697,0.36148,93940.0,93919.0,0.25200194]
[1734920899900,0.053287,93920.0,93919.0,0.25200194]
[1734920900091,0.00068,93922.0,93919.0,0.25200194]
[1734920900292,0.53392783,93940.0,93928.0,0.053282]
[1734920900492,0.3608,93940.0,93937.0,0.001]
[1734920900693,0.053277,93938.0,93937.0,0.001]
[1734920902193,0.053277,93938.0,93920.0,0.053287]
[1734920902404,0.3608,93928.0,93921.0,1.07]
[1734920902794,0.16333348,93931.0,93921.0,1.07]
[1734920902995,0.053277,93938.0,93921.0,1.07]
[1734920903200,0.053277,93938.0,93920.0,0.053287]
[1734920903394,0.053277,93938.0,93920.0,0.055287]
[1734920903395,0.3608,93928.0,93920.0,0.055287]
[1734920903591,0.3608,93928.0,93920.0,0.002]
[1734920903805,0.053286,93921.0,93920.0,0.002]
[1734920903997,0.36156,93928.0,93921.0,0.006]
[1734920904303,0.3608,93928.0,93921.0,0.006]
[1734920904799,0.6608,93928.0,93916.0,0.19053357]
[1734920905003,0.6608,93928.0,93881.0,0.06664]
[1734920905004,0.3608,93917.0,93881.0,0.06664]
[1734920905304,0.414096,93903.0,93902.0,0.08662334]
[1734920905600,0.053301,93895.0,93881.0,0.05064]
[1734920905805,0.414101,93895.0,93894.0,0.01543487]
[1734920905995,0.41423089,93895.0,93894.0,0.01543487]
[1734920906397,0.36092989,93895.0,93881.0,0.05064]
[1734920906597,0.053306,93886.0,93881.0,0.05064]
[1734920907115,0.053307,93885.0,93881.0,0.05064]
[1734920908404,0.053308,93882.0,93881.0,0.05064]
[1734920908599,0.053308,93882.0,93881.0,0.05764]
[1734920909300,0.053308,93882.0,93881.0,0.05064]
[1734920909698,0.06245681,93882.0,93881.0,0.05064]
[1734920909901,0.001,93882.0,93881.0,0.103949]
[1734920910296,0.00012989,93895.0,93881.0,0.05064]
[1734920910601,0.053246,93992.0,93902.0,0.053297]
[1734920910602,0.09298604,93903.0,93902.0,0.053297]
[1734920911492,0.45388559,93903.0,93902.0,0.053297]
[1734920911694,0.12383503,93910.0,93895.0,0.3608]
[1734920911899,0.36140001,93917.0,93909.0,0.053293]
[1734920912197,0.3608,93917.0,93909.0,0.053293]
[1734920912506,0.053289,93916.0,93905.0,0.3608]
[1734920912694,0.3608,93911.0,93897.0,0.0006]
[1734920912892,0.3608,93898.0,93893.0,0.053302]
[1734920913597,0.3608,93898.0,93895.0,0.009]
[1734920914907,0.0533,93897.0,93895.0,0.009]
[1734920915206,0.0533,93897.0,93893.0,0.004]
[1734920915598,0.36144,93898.0,93893.0,0.004]
[1734920915909,0.3608,93898.0,93895.0,0.002]
[1734920916806,0.001,93897.0,93894.0,0.053301]
[1734920917808,0.053303,93893.0,93884.0,0.00159782]
[1734920918008,0.001,93897.0,93886.0,0.053306]
[1734920918400,0.001,93897.0,93886.0,0.069306]
[1734920918596,0.36136001,93898.0,93886.0,0.053306]
[1734920918809,0.36136001,93898.0,93895.0,0.002]
[1734920918810,0.3608,93898.0,93895.0,0.002]
[1734920919509,0.3608,93898.0,93887.0,0.053305]
[1734920919812,0.053298,93900.0,93886.0,0.022]
[1734920919813,0.00056001,93909.0,93897.0,0.3608]
[1734920920007,0.3608,93917.0,93913.0,0.053291]
[1734920920214,0.3608,93917.0,93916.0,0.053289]
[1734920920410,0.3608,93917.0,93907.0,0.16333348]
[1734920920610,0.3608,93917.0,93906.0,0.3608]
[1734920920803,0.053293,93909.0,93906.0,0.3608]
[1734920921000,0.3608,93917.0,93906.0,0.3608]
[1734920921001,0.053294,93908.0,93906.0,0.3608]
[1734920921612,0.053294,93908.0,93901.0,0.053297]
[1734920921821,0.053294,93908.0,93898.0,0.1556]
[1734920921822,0.3608,93927.0,93907.0,0.47176132]
[1734920922005,0.36136001,93927.0,93921.0,0.053286]
[1734920922918,0.00056001,93927.0,93921.0,0.053286]
[1734920923211,0.3608,93937.0,93921.0,0.053286]
[1734920923418,0.053281,93932.0,93921.0,0.058286]
[1734920924007,0.053281,93932.0,93921.0,0.053286]
[1734920924319,0.00159744,93941.0,93935.0,0.053278]
[1734920924913,0.00159744,93941.0,93938.0,0.053276]
[1734920925408,0.00159744,93941.0,93930.0,0.16333348]
[1734920925813,0.05487244,93941.0,93932.0,0.05328]
[1734920926220,0.00159744,93941.0,93938.0,0.001]
[1734920926718,0.00159744,93941.0,93939.0,0.053276]
[1734920926916,0.00159744,93941.0,93940.0,0.3608]
[1734920928015,0.12383503,93963.0,93951.0,0.053269]
[1734920928216,0.12383503,93963.0,93958.0,0.3608]
[1734920928611,0.12383503,93963.0,93959.0,0.016]
[1734920928817,0.053261,93967.0,93959.0,0.016]
[1734920929519,0.12383503,93974.0,93960.0,0.053264]
[1734920929717,0.12383503,93974.0,93964.0,0.16333348]